bitfinex/quotes_SOLUSD_20240624
["timestamp","ask_amount","ask_price","bid_price","bid_amount"]
[1719259373107,19.6743,128.18,128.05,19.5228]
[1719259373308,7.8053,128.12,128.04,38.5499]
[1719259373502,7.8058,128.11,128.03,7.8104]
[1719259373930,7.975,128.13,128.04,7.8097]
[1719259374135,7.975,128.13,128.04,19.5246]
[1719259374136,7.9752,128.12,128.04,19.5246]
[1719259374313,7.9752,128.12,128.02,30.74]
[1719259374314,7.9762,128.11,128.02,30.74]
[1719259374509,0.17,128.13,127.99,455.4176]
[1719259374710,7.9747,128.13,128.05,27.3323]
[1719259374906,0.17,128.12,128.05,19.523]
[1719259375311,0.17,128.12,128.05,7.8093]
[1719259375613,7.9753,128.12,128.04,27.3345]
[1719259375915,7.9753,128.12,128.01,19.5288]
[1719259375916,6.2903,128.1,128.01,19.5288]
[1719259376115,14.0967,128.1,128.02,27.8111]
[1719259376617,7.807,128.09,128.01,27.3406]
[1719259376823,8.1476,128.08,128.0,7.8124]
[1719259377418,7.8082,128.07,127.99,27.6679]
[1719259377627,0.34,128.08,127.99,27.6679]
[1719259377628,8.1476,128.08,128.0,7.8124]
[1719259377928,8.1476,128.08,128.01,7.8118]
[1719259378341,8.1476,128.08,128.0,7.8123]
[1719259378714,0.34,128.08,128.01,7.8116]
[1719259379537,6.2903,128.1,128.01,7.8117]
[1719259379706,0.34,128.09,128.01,7.8117]
[1719259379907,7.8093,128.06,127.99,19.515]
[1719259380134,7.8102,128.04,127.92,933.44]
[1719259380336,0.17,128.09,127.98,7.8093]
[1719259380514,0.34,128.09,127.98,7.8093]
[1719259380845,7.8087,128.07,127.99,27.3448]
[1719259381013,0.17,128.06,127.99,47.3448]
[1719259381332,7.8082,128.07,127.99,47.3448]
[1719259381710,7.8082,128.07,128.0,7.8124]
[1719259382234,7.8076,128.08,128.0,7.8124]
[1719259382421,8.1471,128.09,128.01,7.8117]
[1719259383140,6.2903,128.1,128.04,7.8098]
[1719259383323,16.2458,128.13,128.05,0.17]
[1719259383530,16.2458,128.13,128.02,0.17]
[1719259383729,16.2458,128.13,128.02,20.17]
[1719259383918,7.8084,128.07,128.02,20.0]
[1719259384249,7.8084,128.07,127.99,7.8125]
[1719259384456,7.8067,128.1,128.0,20.0]
[1719259384618,7.808,128.08,128.0,7.8123]
[1719259384949,0.17,128.12,128.03,19.5262]
[1719259385128,16.2458,128.13,128.03,19.5262]
[1719259385441,16.2458,128.13,128.05,19.5226]
[1719259385628,16.2458,128.13,128.08,7.8075]
[1719259385832,6.0039,128.15,128.09,20.0]
[1719259386017,6.0039,128.15,128.06,0.17]
[1719259386214,23.4105,128.19,128.11,7.8056]
[1719259386443,7.8016,128.18,128.11,19.514]
[1719259386629,15.6091,128.19,128.11,19.514]
[1719259386834,7.8015,128.18,128.11,27.3196]
[1719259387030,15.6091,128.19,128.11,27.3196]
[1719259387238,23.4105,128.19,128.11,27.3196]
[1719259387546,23.4105,128.19,128.11,19.514]
[1719259387547,7.8015,128.18,128.11,19.514]
[1719259387737,7.8022,128.17,128.09,7.8068]
[1719259387927,15.6091,128.19,128.08,19.5184]
[1719259387928,7.8038,128.15,128.08,19.5184]
[1719259388238,7.804,128.14,128.06,7.8084]
[1719259388446,7.8053,128.12,128.05,19.5231]
[1719259388750,7.8025,128.17,128.07,19.5193]
[1719259389042,0.17,128.16,128.06,20.0]
[1719259389249,0.17,128.16,128.02,390.4]
[1719259389452,0.17,128.16,128.03,20.0]
[1719259389750,0.17,128.16,127.98,322.21637061]
[1719259389751,6.4348,128.15,128.01,19.5286]
[1719259389918,0.34,128.14,128.02,20.0]
[1719259390119,7.8071,128.09,128.02,20.0]
[1719259390451,7.8088,128.06,127.98,294.2557]
[1719259390646,0.17,128.05,127.98,266.9093]
[1719259390815,7.8101,128.04,127.98,7.8093]
[1719259391023,0.17,128.05,127.98,7.8093]
[1719259391218,0.17,128.05,127.91,298.187]
[1719259391436,0.34,128.06,127.94,33.7718]
[1719259391648,0.34,128.06,127.95,7.8153]
[1719259391854,0.34,128.06,127.91,39.087]
[1719259392032,0.34,128.06,127.93,45.4969]
[1719259392237,8.149,128.06,127.98,7.8137]
[1719259392556,19.8621,128.06,127.96,30.74]
[1719259393051,7.8112,128.03,127.96,30.74]
[1719259393219,19.8621,128.06,127.96,38.5549]
[1719259393220,8.1502,128.04,127.96,38.5549]
[1719259393428,19.8621,128.06,127.96,30.74]
[1719259393648,7.8119,128.01,127.93,7.8162]
[1719259393853,7.9829,128.0,127.92,19.5424]
[1719259394020,7.8144,127.97,127.93,19.8621]
[1719259394221,0.17,127.99,127.93,19.8621]
[1719259394222,7.9834,127.99,127.93,19.8621]
[1719259394452,7.9834,127.99,127.91,7.8174]
[1719259394664,7.9834,127.99,127.9,30.74]
[1719259394665,7.8151,127.96,127.9,50.269]
[1719259394827,7.8151,127.96,127.9,19.529]
[1719259395030,7.8151,127.96,127.88,7.8193]
[1719259395342,7.8159,127.95,127.89,20.0]
[1719259395531,0.34,127.97,127.88,19.5485]
[1719259395722,0.34,127.97,127.87,7.82]
[1719259395922,0.34,127.97,127.81,259.1]
[1719259396132,7.8188,127.9,127.85,22.0348]
[1719259396430,7.8192,127.89,127.81,27.3824]
[1719259396626,0.17,127.9,127.82,7.8234]
[1719259396821,7.9886,127.9,127.82,7.8234]
[1719259397738,6.1831,127.89,127.81,19.5588]
[1719259398054,7.8214,127.86,127.77,278.6649]
[1719259398234,0.34,127.85,127.77,19.5649]
[1719259398554,7.8227,127.84,127.77,19.5649]
[1719259398721,0.34,127.85,127.77,19.5649]
[1719259398921,35.4336,127.88,127.74,50.3102]
[1719259398922,7.8241,127.81,127.74,50.3102]
[1719259399124,7.9947,127.8,127.74,30.74]
[1719259399359,0.17,127.82,127.71,19.5749]
[1719259399534,0.17,127.82,127.75,7.8274]
[1719259399853,0.17,127.82,127.75,7.8277]
[1719259400061,0.34,127.82,127.73,19.5719]
[1719259400349,8.164,127.82,127.74,7.8283]
[1719259400556,7.8242,127.81,127.73,27.4007]
[1719259400757,0.34,127.82,127.74,7.8233]
[1719259400758,0.34,127.8,127.74,7.8233]
[1719259400956,7.8255,127.79,127.72,30.74]
[1719259401144,7.9959,127.78,127.72,30.74]
[1719259401354,7.8272,127.76,127.7,19.5564]
[1719259401654,0.17,127.77,127.68,30.74]
[1719259401655,16.9402,127.77,127.68,30.74]
[1719259401843,16.7702,127.77,127.68,30.74]
[1719259402158,0.17,127.76,127.68,30.74]
[1719259402331,7.8278,127.75,127.67,19.5803]
[1719259402657,0.17,127.74,127.64,19.5853]
[1719259402962,7.9989,127.74,127.65,7.8337]
[1719259403132,7.9991,127.73,127.65,7.8337]
[1719259403335,7.9985,127.74,127.66,7.8332]
[1719259403566,0.17,127.73,127.64,19.5686]
[1719259403880,0.17,127.74,127.62,30.74]
[1719259403881,7.8314,127.7,127.62,30.74]
[1719259404234,7.8314,127.7,127.63,3.133996]
[1719259404464,16.6002,127.77,127.63,22.721296]
[1719259404637,7.8285,127.74,127.65,7.8334]
[1719259404967,7.8285,127.74,127.63,22.721296]
[1719259404968,16.6002,127.77,127.72,7.8295]
[1719259405134,24.4273,127.77,127.66,30.74]
[1719259405334,7.8277,127.76,127.68,19.5796]
[1719259405529,16.6002,127.77,127.66,30.74]
[1719259405763,16.6002,127.77,127.67,0.34]
[1719259405960,16.6002,127.77,127.72,7.8292]
[1719259406164,7.8242,127.81,127.73,27.4002]
[1719259406355,54.9784,127.83,127.7,30.74]
[1719259406549,19.5595,127.82,127.71,27.8299]
[1719259406750,7.8261,127.78,127.7,7.8307]
[1719259406955,15.8637,127.83,127.68,30.74]
[1719259407250,7.8291,127.73,127.65,19.5845]
[1719259407457,7.8285,127.74,127.66,20.0]
[1719259407759,7.8296,127.72,127.63,3.133996]
[1719259407938,0.34,127.71,127.63,23.133996]
[1719259408141,7.8316,127.69,127.63,3.133996]
[1719259408333,7.8316,127.69,127.58,259.1]
[1719259408334,0.34,127.7,127.61,7.8358]
[1719259408539,6.0111,127.69,127.59,19.5931]
[1719259408744,6.0111,127.69,127.62,7.8353]
[1719259408968,13.8426,127.69,127.61,27.422]
[1719259409144,13.8426,127.69,127.61,7.8316]
[1719259409145,6.0111,127.69,127.61,7.8316]
[1719259409343,7.8338,127.66,127.61,7.8316]
[1719259409650,7.8348,127.64,127.56,50.3375]
[1719259409855,0.17,127.65,127.53,278.7023]
[1719259409856,0.17,127.63,127.53,278.7023]
[1719259410070,0.17,127.65,127.54,58.58]
[1719259410243,7.8349,127.64,127.55,27.4384]
[1719259410577,8.0021,127.68,127.58,30.74]
[1719259410868,0.17,127.67,127.58,30.74]
[1719259411075,6.0111,127.69,127.58,30.74]
[1719259411243,6.0111,127.69,127.56,7.8349]
[1719259411244,7.8376,127.59,127.56,7.8349]
[1719259411456,7.8364,127.61,127.52,7.8417]
[1719259411645,6.0111,127.67,127.49,30.74]
[1719259411845,7.8345,127.64,127.56,7.8392]
[1719259412191,7.8345,127.64,127.49,38.5853]
[1719259412192,6.0111,127.67,127.53,30.74]
[1719259412376,7.8339,127.65,127.57,19.5956]
[1719259412548,6.0111,127.67,127.53,30.74]
[1719259412939,7.8358,127.62,127.54,0.17]
[1719259413142,19.5857,127.65,127.53,30.74]
[1719259413362,7.8358,127.62,127.53,7.8411]
[1719259413561,0.34,127.61,127.53,7.8411]
[1719259413769,6.0111,127.67,127.55,7.8398]
[1719259413974,0.34,127.66,127.54,19.6009]
[1719259414267,7.8351,127.63,127.54,27.4413]
[1719259414451,0.34,127.62,127.54,27.4413]
[1719259415079,7.835,127.64,127.55,0.17]
[1719259415368,7.8346,127.64,127.55,20.0]
[1719259415543,7.8375,127.6,127.51,27.4485]
[1719259415744,7.8377,127.59,127.51,19.6061]
[1719259415981,7.8392,127.57,127.49,7.8453]
[1719259416161,7.8395,127.56,127.47,19.6109]
[1719259416482,7.8394,127.56,127.45,15.6253]
[1719259416681,0.34,127.57,127.47,7.8449]
[1719259416876,0.34,127.57,127.48,19.61]
[1719259417050,16.2882,127.58,127.5,7.843]
[1719259417254,16.2882,127.58,127.48,19.61]
[1719259417255,24.1265,127.58,127.49,7.8436]
[1719259417549,24.1265,127.58,127.48,19.61]
[1719259417750,24.1265,127.58,127.5,7.843]
[1719259417751,16.2882,127.58,127.5,7.843]
[1719259417954,24.1264,127.58,127.49,27.8435]
[1719259418260,16.2882,127.58,127.5,19.6072]
[1719259418585,6.3459,127.59,127.5,19.6072]
[1719259418586,6.1759,127.59,127.51,20.0]
[1719259418959,14.0135,127.59,127.51,20.0]
[1719259419156,6.1759,127.59,127.51,27.8425]
[1719259419462,6.0059,127.59,127.51,20.0]
[1719259419657,7.836,127.62,127.53,7.8408]
[1719259419853,16.0607,127.63,127.54,20.0]
[1719259420049,7.8366,127.61,127.54,20.0]
[1719259420275,7.838,127.59,127.52,30.74]
[1719259420458,35.6494,127.63,127.47,259.1]
[1719259420779,16.0607,127.63,127.48,20.34]
[1719259420980,19.9303,127.62,127.49,7.8436]
[1719259421162,19.9303,127.62,127.5,20.0]
[1719259421362,7.8397,127.56,127.48,19.6097]
[1719259421668,7.8388,127.58,127.48,27.4537]
[1719259421863,8.179,127.57,127.48,27.4537]
[1719259422058,7.8381,127.59,127.5,19.6073]
[1719259422262,0.17,127.58,127.5,27.4498]
[1719259422478,16.0607,127.63,127.5,19.6073]
[1719259422656,16.0607,127.63,127.52,19.6042]
[1719259422855,16.0607,127.63,127.53,0.34]
[1719259423055,16.0607,127.63,127.54,19.601]
[1719259423265,16.0607,127.63,127.53,0.34]
[1719259423489,16.0607,127.63,127.53,19.7723]
[1719259423795,16.0607,127.63,127.55,19.5995]
[1719259423956,16.0607,127.63,127.51,69.9507]
[1719259423957,7.8371,127.6,127.51,50.3447]
[1719259424156,7.8368,127.61,127.51,50.3447]
[1719259424352,16.0607,127.63,127.51,50.3447]
[1719259424353,16.0607,127.63,127.53,19.6027]
[1719259424570,16.0607,127.63,127.56,7.839]
[1719259424757,6.0615,127.64,127.52,20.0]
[1719259424966,25.29575489,127.68,127.58,7.8377]
[1719259424967,16.346,127.68,127.58,7.8377]
[1719259425173,7.8332,127.67,127.58,7.8377]
[1719259425461,30.2486,127.68,127.59,8.0074]
[1719259425684,30.2486,127.68,127.59,19.7637]
[1719259425986,22.4164,127.68,127.56,19.5976]
[1719259426153,7.8351,127.63,127.55,31.08]
[1719259426479,7.8351,127.63,127.56,20.17]
[1719259426688,7.834,127.65,127.56,20.17]
[1719259426859,0.17,127.66,127.58,7.8381]
[1719259427062,22.4164,127.68,127.6,7.8368]
[1719259427384,6.0704,127.68,127.59,31.08]
[1719259427587,6.0704,127.68,127.61,7.8361]
[1719259427760,6.0704,127.74,127.65,7.8338]
[1719259427959,6.0704,127.74,127.63,30.74]
[1719259428185,6.0704,127.74,127.64,20.0]
[1719259428479,7.8308,127.71,127.64,20.0]
[1719259428656,6.0704,127.74,127.65,7.8338]
[1719259428657,13.8993,127.74,127.65,7.8338]
[1719259428853,6.0704,127.74,127.63,30.74]
[1719259429053,19.576,127.71,127.58,19.5943]
[1719259429283,19.576,127.71,127.59,20.17]
[1719259429465,7.8302,127.71,127.62,7.8355]
[1719259429854,6.0704,127.74,127.59,20.17]
[1719259430054,7.8307,127.71,127.62,7.8351]
[1719259430480,7.8311,127.7,127.61,27.5964]
[1719259430685,7.8311,127.7,127.62,20.0]
[1719259430984,7.8302,127.71,127.62,27.8353]
[1719259431187,0.34,127.7,127.55,289.84]
[1719259431373,0.17,127.69,127.6,19.5918]
[1719259431559,7.8318,127.69,127.6,7.8365]
[1719259431761,7.8318,127.69,127.56,20.0]
[1719259431763,7.8305,127.71,127.62,7.8356]
[1719259431980,7.8306,127.71,127.62,7.8356]
[1719259432168,0.17,127.73,127.61,19.5899]
[1719259432484,0.17,127.73,127.65,7.8338]
[1719259432784,6.0704,127.74,127.66,7.8332]
[1719259432958,7.8291,127.73,127.65,19.5845]
[1719259433277,6.0704,127.74,127.6,0.17]
[1719259433480,6.0704,127.74,127.6,28.1764]
[1719259433481,7.8319,127.69,127.6,28.1764]
[1719259433660,7.8321,127.68,127.6,20.17]
[1719259434055,19.5744,127.72,127.59,19.5927]
[1719259434056,7.8327,127.67,127.59,19.5927]
[1719259434261,7.832,127.69,127.59,19.5927]
[1719259434563,8.94975489,127.73,127.56,19.5974]
[1719259434564,0.17,127.68,127.56,19.5974]
[1719259434764,0.17,127.68,127.55,329.0397]
[1719259434765,0.17,127.68,127.6,7.8363]
[1719259434969,0.17,127.68,127.59,7.8374]
[1719259434970,7.8329,127.67,127.59,7.8374]
[1719259435172,0.17,127.68,127.6,7.8369]
[1719259435775,0.17,127.68,127.59,19.5936]
[1719259435776,7.8331,127.67,127.59,19.5936]
[1719259435969,8.0026,127.68,127.59,27.4309]
[1719259436384,0.17,127.68,127.61,7.8363]
[1719259436589,0.34,127.69,127.61,7.8363]
[1719259436972,0.34,127.69,127.6,7.8368]
[1719259437788,8.1716,127.69,127.6,7.8368]
[1719259437992,8.1716,127.69,127.61,7.8363]
[1719259438184,8.94975489,127.73,127.61,19.5901]
[1719259438379,6.0704,127.74,127.62,20.17]
[1719259438688,7.8291,127.73,127.65,7.8338]
[1719259439095,6.0704,127.74,127.65,19.5839]
[1719259439265,6.0704,127.74,127.68,7.8319]
[1719259439890,6.0704,127.74,127.69,7.8312]
[1719259440396,6.0704,127.74,127.66,30.91]
[1719259440582,6.0704,127.74,127.67,20.0]
[1719259440899,6.0704,127.74,127.67,20.17]
[1719259441069,7.827,127.77,127.67,20.17]
[1719259441269,16.2632,127.78,127.67,20.17]
[1719259441270,6.2323,127.79,127.68,0.17]
[1719259441682,6.2323,127.79,127.7,30.74]
[1719259441885,6.2323,127.79,127.71,20.0]
[1719259442089,6.2323,127.79,127.7,38.5704]
[1719259442090,6.2323,127.79,127.7,30.74]
[1719259442393,7.827,127.77,127.68,8.0014]
[1719259442592,14.058,127.79,127.7,7.8303]
[1719259442797,6.2323,127.79,127.71,0.34]
[1719259443092,16.163,127.83,127.71,20.17]
[1719259443302,16.163,127.83,127.76,7.8266]
[1719259443473,16.163,127.83,127.77,19.5657]
[1719259443672,14.3075,127.85,127.77,19.5657]
[1719259443901,7.823,127.83,127.74,58.1388]
[1719259444201,6.4858,127.85,127.79,19.5623]
[1719259444379,15.3935,127.88,127.81,7.8239]
[1719259444588,15.3935,127.88,127.81,19.5594]
[1719259444886,15.3935,127.88,127.82,0.17]
[1719259445087,6.2757,127.9,127.82,28.1633]
[1719259445277,6.2757,127.9,127.82,20.17]
[1719259445596,6.2757,127.9,127.83,0.17]
[1719259445773,6.2757,127.9,127.83,7.9927]
[1719259446096,6.2757,127.9,127.84,20.0]
[1719259446393,15.1044,127.94,127.84,20.0]
[1719259446894,7.8185,127.91,127.83,0.17]
[1719259447094,7.8185,127.91,127.83,20.17]
[1719259447299,7.8185,127.91,127.84,0.17]
[1719259447480,15.1044,127.94,127.82,30.74]
[1719259447674,7.8186,127.91,127.82,30.74]
[1719259447876,15.1044,127.94,127.84,7.8222]
[1719259448074,15.1044,127.94,127.82,30.74]
[1719259448075,7.818,127.91,127.82,30.74]
[1719259448296,15.1044,127.94,127.83,20.17]
[1719259448474,7.8197,127.89,127.81,0.17]
[1719259448794,19.5481,127.89,127.77,19.5658]
[1719259449098,15.1044,127.94,127.81,19.5596]
[1719259449283,0.34,127.93,127.82,7.8233]
[1719259449794,19.8821,127.93,127.78,30.74]
[1719259449974,19.8821,127.93,127.8,19.5612]
[1719259450180,19.8821,127.93,127.81,8.1641]
[1719259450495,19.8821,127.93,127.82,19.5581]
[1719259450496,0.34,127.93,127.82,19.5581]
[1719259450695,0.34,127.93,127.83,20.34]
[1719259450896,7.8182,127.91,127.83,20.34]
[1719259451192,0.34,127.93,127.8,7.8242]
[1719259451391,0.34,127.93,127.81,39.8995]
[1719259451599,0.34,127.93,127.83,7.8228]
[1719259452309,15.1044,127.94,127.83,19.5565]
[1719259452498,15.1044,127.94,127.84,0.34]
[1719259452804,15.1044,127.94,127.85,7.8216]
[1719259452994,15.1044,127.94,127.86,0.34]
[1719259453186,15.1044,127.94,127.86,0.17]
[1719259453373,15.1044,127.94,127.83,19.5565]
[1719259453699,15.1044,127.94,127.84,20.34]
[1719259453899,15.1044,127.94,127.84,28.162]
[1719259454077,15.1044,127.94,127.84,28.1618]
[1719259454974,15.1044,127.94,127.82,7.823]
[1719259454975,7.8184,127.91,127.82,7.823]
[1719259455175,0.34,127.93,127.81,30.74]
[1719259455377,0.34,127.93,127.74,79.8801]
[1719259455671,0.34,127.93,127.8,27.386]
[1719259455895,7.8193,127.89,127.8,27.386]
[1719259456095,7.9887,127.9,127.81,7.8239]
[1719259456405,0.17,127.9,127.8,19.5615]
[1719259456607,0.17,127.9,127.77,39.1321]
[1719259456904,7.8193,127.89,127.81,7.824]
[1719259457278,0.34,127.91,127.81,19.5597]
[1719259457483,0.34,127.91,127.78,30.74]
[1719259457684,19.5427,127.93,127.8,27.3857]
[1719259457685,7.8193,127.89,127.8,27.3857]
[1719259457887,7.8193,127.89,127.81,20.34]
[1719259458401,7.8186,127.9,127.81,28.1641]
[1719259458585,15.1044,127.94,127.82,19.558]
[1719259458783,7.8172,127.93,127.85,7.8216]
[1719259459088,15.1044,127.94,127.83,0.17]
[1719259459287,7.8192,127.89,127.81,70.2994]
[1719259459486,19.5425,127.93,127.81,50.74]
[1719259459715,7.8181,127.91,127.82,0.17]
[1719259459899,15.1044,127.94,127.82,19.7277]
[1719259460081,7.8178,127.92,127.83,20.0]
[1719259460282,7.818,127.91,127.83,27.8227]
[1719259460486,0.17,127.93,127.83,20.0]
[1719259460797,7.8187,127.9,127.83,20.0]
[1719259461103,7.8181,127.91,127.83,20.0]
[1719259461310,7.8186,127.9,127.83,20.0]
[1719259461487,7.8186,127.9,127.82,19.8977]
[1719259461813,7.8202,127.88,127.81,45.8444]
[1719259461991,7.8207,127.87,127.79,19.5625]
[1719259462299,7.9893,127.89,127.8,27.8241]
[1719259462503,34.6459,127.94,127.81,19.5595]
[1719259462696,34.6459,127.94,127.8,20.0]
[1719259462697,7.8168,127.93,127.8,20.0]
[1719259462907,15.1044,127.94,127.82,30.74]
[1719259463081,15.1044,127.94,127.83,20.0]
[1719259463283,15.1044,127.94,127.84,0.17]
[1719259463588,15.1044,127.94,127.84,0.34]
[1719259463985,15.1044,127.94,127.83,20.0]
[1719259464180,7.8174,127.92,127.84,0.17]
[1719259464382,0.17,127.93,127.83,20.0]
[1719259465105,0.17,127.93,127.79,19.5621]
[1719259465295,7.8208,127.87,127.79,19.5621]
[1719259465690,19.5454,127.91,127.79,19.5621]
[1719259465903,7.8212,127.86,127.77,7.826]
[1719259466283,0.34,127.9,127.75,31.300104]
[1719259466284,7.8232,127.83,127.75,31.300104]
[1719259466609,0.17,127.85,127.74,6.4845047]
[1719259466610,0.34,127.85,127.74,6.4845047]
[1719259466786,7.8239,127.82,127.73,7.8288]
[1719259467110,0.17,127.84,127.75,7.8275]
[1719259467407,0.17,127.84,127.74,35.2215]
[1719259467586,7.823,127.83,127.75,7.8277]
[1719259467781,7.823,127.83,127.74,35.2215]
[1719259467984,0.17,127.84,127.75,0.17]
[1719259468211,23.8683,127.85,127.76,7.8266]
[1719259468504,7.8224,127.84,127.76,7.8266]
[1719259468710,13.8429,127.89,127.8,7.8247]
[1719259469006,6.0235,127.89,127.8,19.5614]
[1719259469302,6.0235,127.89,127.81,0.34]
[1719259469616,6.0235,127.89,127.82,7.8229]
[1719259469799,6.0235,127.89,127.82,7.9929]
[1719259470002,6.0235,127.89,127.83,0.17]
[1719259470318,6.0235,127.89,127.81,27.8238]
[1719259470607,6.0235,127.89,127.82,0.17]
[1719259470809,6.0235,127.89,127.8,30.74]
[1719259471013,6.0235,127.89,127.81,7.9936]
[1719259471180,6.0235,127.89,127.79,0.17]
[1719259471181,13.8427,127.89,127.8,7.8241]
[1719259471513,6.0235,127.89,127.81,0.34]
[1719259471683,13.8376,127.93,127.84,7.8221]
[1719259471890,6.0208,127.93,127.83,19.7267]
[1719259472097,13.838,127.93,127.84,8.1621]
[1719259472285,7.8191,127.9,127.81,7.824]
[1719259472491,7.8191,127.9,127.8,19.5609]
[1719259472492,7.8175,127.92,127.83,7.8227]
[1719259472703,19.5438,127.92,127.78,6.051]
[1719259472918,7.8199,127.88,127.79,27.9953]
[1719259473090,7.8209,127.87,127.79,20.0]
[1719259473284,7.8209,127.87,127.79,27.8252]
[1719259473625,7.82,127.88,127.79,27.8252]
[1719259473828,7.8214,127.86,127.79,20.0]
[1719259474003,7.8214,127.86,127.78,19.5642]
[1719259474195,0.34,127.89,127.78,19.5642]
[1719259474196,7.82,127.88,127.79,7.8252]
[1719259474525,6.0208,127.93,127.82,19.5583]
[1719259474689,7.8178,127.92,127.83,7.8224]
[1719259475221,7.8178,127.92,127.84,0.17]
[1719259475395,6.0208,127.93,127.84,0.17]
[1719259475396,6.0208,127.93,127.85,19.5538]
[1719259475582,6.0208,127.93,127.86,0.17]
[1719259475787,6.0208,127.93,127.87,19.5504]
[1719259476523,6.0208,127.93,127.86,7.9909]
[1719259476684,7.8144,127.97,127.88,7.8196]
[1719259476890,14.3577,127.98,127.89,7.8191]
[1719259477087,6.544,127.98,127.9,0.34]
[1719259477313,14.3581,127.98,127.9,0.34]
[1719259477715,6.544,127.98,127.9,8.1583]
[1719259477922,6.544,127.98,127.91,27.8178]
[1719259478210,6.544,127.98,127.91,20.0]
[1719259479317,6.544,127.98,127.91,27.8179]
[1719259480115,6.544,127.98,127.91,20.0]
[1719259480415,6.544,127.98,127.91,27.8175]
[1719259481803,6.544,127.98,127.91,20.0]
[1719259482108,6.544,127.98,127.92,27.3597]
[1719259482284,6.544,127.98,127.93,0.17]
[1719259482900,6.544,127.98,127.93,7.9863]
[1719259483092,6.544,127.98,127.93,0.17]
[1719259483918,23.6969,128.0,127.93,0.17]
[1719259484130,15.8841,128.0,127.93,0.17]
[1719259484298,15.8841,128.0,127.92,8.1572]
[1719259484618,15.8841,128.0,127.92,0.34]
[1719259484917,15.8841,128.0,127.94,7.8161]
[1719259485088,15.8841,128.0,127.92,28.1573]
[1719259486223,7.8136,127.99,127.92,20.17]
[1719259486521,23.6967,128.0,127.92,0.17]
[1719259486700,23.6967,128.0,127.93,7.8167]
[1719259486701,15.8841,128.0,127.93,7.8167]
[1719259486901,15.8841,128.0,127.94,7.986]
[1719259487100,6.4345,128.02,127.95,7.8154]
[1719259487297,6.4345,128.02,127.96,7.8148]
[1719259487502,6.4345,128.02,127.95,7.8153]
[1719259487706,6.4345,128.02,127.96,8.1549]
[1719259488201,16.4528,128.05,127.96,0.34]
[1719259488414,7.8094,128.06,127.97,7.8141]
[1719259488720,7.809,128.06,127.98,8.1536]
[1719259489015,6.5549,128.07,127.98,0.17]
[1719259489016,7.8104,128.04,127.98,0.17]
[1719259489520,7.8104,128.04,127.96,27.9848]
[1719259489521,7.8104,128.04,127.97,0.17]
[1719259489818,7.8104,128.04,127.96,20.17]
[1719259489999,26.0754,128.07,127.96,0.17]
[1719259490203,26.0754,128.07,127.95,0.17]
[1719259490204,7.812,128.01,127.95,0.17]
[1719259490406,7.8126,128.0,127.91,19.5438]